bitfinex-derivatives/quotes_BNBF0:USTF0_20250116
["timestamp","ask_amount","ask_price","bid_price","bid_amount"]
[1737008772450,1.05262649,710.78,710.09,6.812]
[1737008776555,1.05262649,710.77,710.09,6.812]
[1737008781660,0.69809799,711.08,710.09,6.812]
[1737008781661,1.05262649,710.76,710.09,6.812]
[1737008783661,1.05262649,710.75,710.09,6.812]
[1737008784667,1.05262649,710.77,710.09,6.812]
[1737008785773,0.28125834,711.09,710.09,6.812]
[1737008785774,1.05262649,711.02,710.09,6.812]
[1737008787165,1.05262649,711.0,710.09,6.812]
[1737008788273,1.05262649,711.01,710.09,6.812]
[1737008789376,1.05262649,710.98,710.09,6.812]
[1737008790372,1.05262649,710.97,710.09,6.812]
[1737008791473,1.05262649,710.96,710.09,6.812]
[1737008793577,1.05262649,710.95,710.09,6.812]
[1737008794772,1.05262649,710.92,710.09,6.812]
[1737008796078,1.05262649,710.83,710.09,6.812]
[1737008798479,1.05262649,710.82,710.09,6.812]
[1737008800687,1.05262649,710.81,710.09,6.812]
[1737008801782,1.05262649,710.72,710.09,6.812]
[1737008802582,1.05262649,710.74,710.09,6.812]
[1737008803682,1.05262649,710.84,710.09,6.812]
[1737008804885,1.05262649,711.05,710.09,6.812]
[1737008805590,0.28125834,711.09,710.09,6.812]
[1737008838314,1.05262649,711.06,710.09,6.812]
[1737008839015,1.05262649,710.97,710.09,6.812]
[1737008840413,1.05262649,711.02,710.09,6.812]
[1737008841615,1.05262649,711.03,710.09,6.812]
[1737008843613,0.28125834,711.09,710.09,6.812]
[1737008847115,1.05262649,711.19,710.1,0.25862964]
[1737008847512,1.05262649,711.25,710.1,0.25862964]
[1737008847713,1.05262649,711.25,710.11,0.25862964]
[1737008847917,1.05262649,711.25,710.12,0.25862964]
[1737008848117,1.05262649,711.25,710.13,0.25862964]
[1737008848417,1.05262649,711.25,710.14,0.25862964]
[1737008848619,1.05262649,711.16,710.17,1.04947308]
[1737008849711,1.05262649,711.43,710.13,4.56747308]
[1737008850315,1.05262649,711.43,710.13,4.84911165]
[1737008850916,1.05262649,711.48,710.13,3.79963857]
[1737008852016,1.05262649,711.54,710.13,3.79963857]
[1737008853119,1.05262649,711.54,710.14,0.54019015]
[1737008853319,1.05262649,711.54,710.14,0.2816346]
[1737008853719,1.05262649,711.62,710.14,0.2816346]
[1737008854322,1.05262649,711.62,710.15,0.25853761]
[1737008854718,1.05262649,711.74,710.16,0.28162667]
[1737008854917,0.28100543,711.73,710.17,0.25853761]
[1737008855120,0.28100543,711.73,710.18,0.28161874]
[1737008856016,0.28100543,711.73,710.19,0.2585314]
[1737008856221,0.28100543,711.73,710.2,0.28161081]
[1737008857437,1.46859713,711.72,710.2,0.28161081]
[1737008857922,0.28101333,711.71,710.2,0.28161081]
[1737008861719,0.28101333,711.71,710.2,1.61161081]
[1737008861927,0.28101333,711.71,710.2,4.38161081]
[1737008863927,0.28101333,711.71,710.21,0.25853506]
[1737008864125,0.28101333,711.71,710.22,0.28160288]
[1737008864326,0.28101333,711.71,710.23,0.25853506]
[1737008865228,0.28101333,711.71,710.24,0.25853551]
[1737008865428,0.28101333,711.71,710.25,0.25853551]
[1737008865623,0.28101333,711.71,710.26,0.25853551]
[1737008865827,0.28101333,711.71,710.22,0.28160288]
[1737008866030,0.28101333,711.71,710.23,0.25853504]
[1737008867827,0.28101333,711.71,710.24,0.25853387]
[1737008868031,0.28101333,711.71,710.25,0.25853387]
[1737008868231,0.28101333,711.71,710.26,0.25853387]
[1737008868531,0.28101333,711.71,710.22,0.28160288]
[1737008868732,0.28101333,711.71,710.23,0.25853644]
[1737008870736,0.28101333,711.71,710.24,0.25853837]
[1737008870937,0.28101333,711.71,710.25,0.25853837]
[1737008871136,0.28101333,711.71,710.26,0.25853837]
[1737008871336,0.28101333,711.71,710.27,0.25853837]
[1737008871537,0.28101333,711.71,710.28,0.25853837]
[1737008871729,0.28101333,711.71,710.29,0.25853837]
[1737008871930,0.28101333,711.71,710.3,0.25853837]
[1737008872135,0.28101333,711.71,710.31,0.25853837]
[1737008872334,0.28101333,711.71,710.32,0.25853837]
[1737008872534,0.28101333,711.71,710.23,0.25853837]
[1737008872739,0.28101333,711.71,710.24,0.25853527]
[1737008873334,0.28101333,711.71,710.23,1.126]
[1737008873532,0.28101333,711.71,710.24,0.25853818]
[1737008873935,0.28101333,711.71,710.24,1.25953818]
[1737008874232,0.28101333,711.71,710.25,0.25853818]
[1737008875031,0.28101333,711.71,710.25,2.08053818]
[1737008875232,0.28101333,711.71,710.26,0.25853818]
[1737008876137,0.28101333,711.71,710.26,1.30053818]
[1737008876338,0.28101333,711.71,710.27,0.25853818]
[1737008877039,1.05262649,711.7,710.27,0.25853818]
[1737008877236,0.28102123,711.69,710.27,0.25853818]
[1737008877940,1.05262649,711.64,710.27,0.25853818]
[1737008878439,1.05262649,711.64,710.26,1.042]
[1737008878934,1.05262649,711.62,710.26,1.042]
[1737008879935,0.28102123,711.69,710.26,1.042]
[1737008881243,1.05262649,711.64,710.26,1.042]
[1737008882243,1.05262649,711.59,710.26,1.042]
[1737008883444,1.05262649,711.55,710.26,1.042]
[1737008884539,1.05262649,711.48,710.26,1.042]
[1737008885644,1.05262649,711.47,710.27,0.25856298]
[1737008886542,1.05262649,711.47,710.26,1.042]
[1737008886738,2.14911243,712.31,710.26,1.042]
[1737008886739,1.05262649,711.32,710.34,1.04947308]
[1737008886938,1.05262649,711.32,710.34,2.04647308]
[1737008887647,1.05262649,711.31,710.35,1.04947308]
[1737008888245,5.3677339,712.32,710.34,0.997]
[1737008888545,5.3677339,713.44,710.34,0.997]
[1737008888746,7.59657526,713.56,710.34,0.997]
[1737008888946,3.28730705,713.55,710.34,0.997]
[1737008889147,3.28730705,713.54,710.34,0.997]
[1737008889448,1.05410649,711.36,710.39,1.05099378]
[1737008890542,1.05410649,711.36,710.34,0.997]
[1737008890543,1.05410649,711.37,710.4,1.05099378]
[1737008891450,1.05410649,711.4,710.43,1.05099378]
[1737008892448,1.05410649,711.39,710.43,1.05099378]
[1737008893247,1.05410649,711.38,710.41,1.05099378]
[1737008893946,1.05410649,711.32,710.43,1.05099378]
[1737008895250,1.05410649,711.32,710.43,3.02599378]
[1737008896147,1.05410649,711.32,710.44,1.05099378]
[1737008896949,1.05410649,711.33,710.43,1.975]
[1737008899950,1.05410649,711.34,710.43,3.02599378]
[1737008901056,2.15213409,711.94,710.43,3.02599378]
[1737008901057,1.05410649,711.32,710.43,3.101]
[1737008901956,1.05410649,711.37,710.43,3.101]
[1737008904160,2.15213409,712.05,710.43,3.101]
[1737008904161,1.05410649,711.36,710.43,4.104]
[1737008905460,2.15213409,712.03,710.43,4.104]
[1737008905461,1.05410649,711.51,710.43,4.104]
[1737008906660,1.05410649,711.52,710.43,4.104]
[1737008908058,1.05410649,711.6,710.43,4.104]
[1737008908964,1.05410649,711.65,710.43,4.104]
[1737008909965,1.05410649,711.64,710.43,4.104]
[1737008910769,1.05410649,711.65,710.43,4.104]
[1737008912082,1.05410649,711.68,710.43,4.104]
[1737008912797,1.05410649,711.68,710.44,0.25847322]
[1737008913095,2.15213409,712.54,710.44,0.25847322]
[1737008913096,1.05410649,711.7,710.44,0.25847322]
[1737008913679,1.05410649,711.7,710.43,4.02899378]
[1737008913878,1.05410649,711.7,710.44,0.25847447]
[1737008914074,1.05410649,711.65,710.49,1.05099378]
[1737008914266,1.05410649,711.65,710.5,0.25847447]
[1737008914965,1.05410649,711.67,710.5,0.25847447]
[1737008915161,1.05410649,711.67,710.51,0.25847447]
[1737008916270,1.05410649,711.68,710.51,0.25847447]
[1737008916464,1.05410649,711.68,710.52,0.25847387]
[1737008916671,1.05410649,711.68,710.5,1.125]
[1737008916966,1.05410649,711.68,710.51,0.25847402]
[1737008917173,1.05410649,711.69,710.51,0.25847402]
[1737008917569,1.05410649,711.69,710.51,2.69247402]
[1737008917767,1.05410649,711.69,710.52,0.25847402]
[1737008918170,1.05410649,712.01,710.52,0.25847402]
[1737008918171,1.05410649,711.7,710.52,0.25847402]
[1737008918869,1.05410649,711.7,710.51,2.434]
[1737008919270,0.69821888,712.31,710.51,2.434]
[1737008919271,1.05410649,711.68,710.51,2.434]
[1737008920375,1.05410649,711.88,710.51,2.434]
[1737008921676,1.05410649,711.88,710.51,3.343]
[1737008923578,1.05410649,711.89,710.51,3.343]
[1737008923777,1.33504877,711.89,710.51,3.343]
[1737008924471,1.33504877,711.89,710.51,4.497]
[1737008924674,0.28094228,711.89,710.51,4.497]
[1737008933286,0.28094228,711.89,710.52,0.28148398]
[1737008934794,0.28094228,711.89,710.52,2.02848398]
[1737008938488,0.28094228,711.89,710.52,2.90648398]
[1737008941702,0.28094228,711.89,710.52,3.93648398]
[1737008942198,0.28094228,711.89,710.53,0.25843686]
[1737008943193,0.28094228,711.89,710.54,0.28147606]
[1737008943400,1.05410649,711.75,710.6,1.05099378]
[1737008943700,1.05410649,711.75,710.61,0.25843686]
[1737008944294,1.05410649,711.75,710.64,1.05099378]
[1737008944799,1.05410649,711.75,710.65,0.2584263]
[1737008945394,1.05410649,711.74,710.66,1.05099378]
[1737008946401,1.05410649,711.73,710.67,1.05099378]
[1737008947403,1.05410649,711.72,710.67,1.05099378]
[1737008948406,1.05410649,711.73,710.66,1.05099378]
[1737008949507,1.05410649,711.74,710.64,1.05099378]
[1737008949904,1.05410649,711.74,710.64,3.42799378]
[1737008951404,1.05410649,711.74,710.66,1.05099378]
[1737008952206,1.05410649,711.75,710.64,3.511]
[1737008953410,1.05410649,711.74,710.64,4.56199378]
[1737008954913,1.05410649,711.79,710.64,3.511]
[1737008957916,1.05410649,711.81,710.64,3.511]
[1737008958710,1.05410649,711.79,710.64,3.511]
[1737008961012,0.28094228,711.89,710.64,3.511]
[1737008965513,1.05410649,711.88,710.64,3.511]
[1737008966719,1.05410649,711.86,710.64,3.511]
[1737008968215,1.05410649,711.83,710.64,3.511]
[1737008968614,1.05410649,711.83,710.64,4.636]
[1737008969120,1.05410649,711.81,710.64,4.636]
[1737008970915,1.05410649,711.81,710.64,5.822]
[1737008971126,1.05410649,711.66,710.69,1.05099378]
[1737008972221,1.05410649,711.68,710.67,1.05099378]
[1737008972617,1.05410649,711.68,710.67,3.54099378]
[1737008973520,1.05410649,711.68,710.67,2.49]
[1737008974819,1.05410649,711.66,710.67,2.49]
[1737008976143,0.28094228,711.89,710.67,2.49]
[1737008976144,1.05410649,711.58,710.67,2.49]
[1737008977424,1.05410649,711.85,710.67,2.49]
[1737008977425,1.05410649,711.64,710.67,2.49]
[1737008978527,1.05410649,711.55,710.67,2.49]
[1737008980727,1.05410649,711.6,710.67,2.49]
[1737008981929,1.05410649,711.61,710.67,2.49]
[1737008982428,1.05410649,711.61,710.67,3.615]
[1737008983123,1.05410649,711.63,710.67,3.615]
[1737008984230,1.05410649,711.65,710.67,3.615]
[1737008985330,0.28095017,711.87,710.67,3.615]
[1737008985331,1.05410649,711.62,710.67,3.615]
[1737008986530,1.05410649,711.63,710.67,3.615]
[1737008987330,1.05410649,711.63,710.67,5.055]
[1737008987532,1.05410649,711.65,710.67,5.055]
[1737008988833,0.28095017,711.87,710.67,5.055]
[1737008996038,0.28095017,711.87,710.67,6.153]
[1737008998935,0.28095017,711.87,710.67,7.055]
[1737008999138,1.05410649,711.8,710.67,7.055]
[1737008999342,0.28098175,711.79,710.67,7.055]
[1737009000137,1.33508824,711.79,710.67,7.055]
[1737009002142,1.05410649,711.77,710.67,7.055]
[1737009002736,1.33509613,711.77,710.67,7.055]
[1737009002937,1.05410649,711.68,710.67,7.055]
[1737009003340,0.28098964,711.77,710.67,7.055]
[1737009004541,1.05251141,711.69,710.67,7.055]
[1737009005338,1.05251141,711.63,710.67,7.055]
[1737009006448,1.05251141,711.6,710.67,7.055]
[1737009007447,1.05251141,711.59,710.67,7.055]
[1737009008244,0.28098964,711.77,710.67,7.055]
[1737009008245,1.05251141,711.57,710.67,7.055]
[1737009009441,1.05251141,711.54,710.67,7.055]
[1737009010554,0.28098964,711.77,710.67,7.055]
[1737009010555,1.05251141,711.67,710.67,7.055]
[1737009011645,1.05251141,711.69,710.67,7.055]
[1737009016250,0.28098964,711.77,710.67,7.055]
[1737009021050,1.05251141,711.74,710.69,1.04974223]
[1737009022454,1.05251141,711.74,710.69,4.13074223]
[1737009022754,0.28098964,711.77,710.69,3.081]
[1737009023149,0.28098964,711.77,710.69,3.946]
[1737009025952,0.28098964,711.77,710.69,6.226]
[1737009046170,1.33350105,711.77,710.69,6.226]
[1737009047167,1.05251141,711.76,710.69,6.226]
[1737009048072,1.05251141,711.75,710.69,6.226]
[1737009049169,1.05251141,711.76,710.69,6.226]
[1737009050373,1.05251141,711.73,710.69,6.226]
[1737009051671,1.05251141,711.7,710.7,1.04974223]
[1737009052472,1.05251141,711.7,710.69,1.214]
[1737009052473,1.05251141,711.69,710.72,1.04974223]
[1737009053174,1.05251141,711.69,710.72,5.00574223]
[1737009053375,1.05251141,711.67,710.73,1.04974223]
[1737009055475,1.05251141,711.67,710.74,1.04974223]
[1737009056076,1.05251141,711.67,710.74,2.42574223]
[1737009056376,1.05251141,711.66,710.74,2.42574223]
[1737009057778,1.05251141,711.65,710.76,1.04974223]
[1737009058672,1.05251141,711.62,710.8,1.04974223]
[1737009060079,1.05251141,711.63,710.79,1.04974223]
[1737009062281,1.05251141,711.62,710.8,1.04974223]
[1737009063479,1.05251141,711.62,710.81,1.04974223]
[1737009066081,1.05251141,711.6,710.8,1.04974223]
[1737009066978,0.28098964,711.77,710.74,1.376]
[1737009066979,1.05251141,711.62,710.78,1.04974223]
[1737009067976,1.05251141,711.61,710.79,1.04974223]
[1737009069180,1.05251141,711.6,710.81,1.04974223]
[1737009070079,1.05251141,711.59,710.8,1.04974223]
[1737009070779,1.05251141,711.59,710.79,1.04974223]
[1737009071984,0.28098964,711.77,710.74,1.376]
[1737009073687,0.28098964,711.77,710.74,2.487]
[1737009076191,0.28098964,711.77,710.74,3.34]
[1737009080191,0.28098964,711.77,710.74,4.465]
[1737009081288,0.28098964,711.77,710.74,6.071]
[1737009082894,1.05251141,711.72,710.74,6.071]
[1737009084096,1.05251141,711.71,710.74,6.071]
[1737009085296,1.05251141,711.7,710.74,6.071]
[1737009086293,1.33350105,711.77,710.74,6.071]
[1737009087497,0.28098964,711.77,710.74,6.071]
[1737009094097,1.05251141,711.72,710.74,6.071]
[1737009095502,1.05251141,711.75,710.74,6.071]
[1737009096803,1.05251141,712.1,710.74,6.071]
[1737009098205,1.26301369,712.81,710.74,6.071]
[1737009098206,1.05251141,712.28,710.75,0.28139289]
[1737009099406,1.05251141,712.47,710.75,0.28139289]
[1737009099709,0.28071751,712.46,710.75,2.88439289]
[1737009105908,1.05251141,712.4,710.75,2.88439289]
[1737009106111,0.28074903,712.38,710.75,2.88439289]
[1737009106515,0.28074903,712.38,710.75,4.00939289]
[1737009106715,1.05251141,712.31,710.75,4.00939289]
[1737009107312,0.28078451,712.29,710.75,4.00939289]
[1737009107513,0.28078451,712.29,710.75,5.23039289]
[1737009108015,1.05251141,712.2,710.75,5.23039289]
[1737009108214,0.28082393,712.19,710.75,5.23039289]
[1737009109110,1.05251141,712.18,710.75,5.23039289]
[1737009110114,0.28083182,712.17,710.75,5.23039289]
[1737009113916,1.05251141,712.16,710.75,5.23039289]
[1737009114616,0.28083971,712.15,710.75,5.23039289]
[1737009118221,1.05251141,712.06,710.75,5.23039289]
[1737009118417,0.28087915,712.05,710.75,5.23039289]
[1737009119419,1.33339056,712.05,710.75,5.23039289]
[1737009120616,1.05251141,711.91,710.75,5.23039289]
[1737009124022,1.05251141,711.87,710.75,5.23039289]
[1737009124922,1.05251141,711.88,710.75,5.23039289]
[1737009125922,1.05251141,711.86,710.75,5.23039289]
[1737009127922,1.05251141,711.87,710.75,5.23039289]
[1737009129727,1.05251141,711.86,710.75,5.23039289]
[1737009131428,1.05251141,711.87,710.75,5.23039289]
[1737009133420,1.05251141,711.89,710.75,5.23039289]
[1737009134329,1.05251141,711.86,710.75,5.23039289]
[1737009135325,1.05251141,711.85,710.75,5.23039289]
[1737009141634,1.05251141,711.85,710.75,6.35539289]
[1737009142036,1.05251141,711.81,710.75,6.35539289]
[1737009143337,1.05251141,711.8,710.75,6.35539289]
[1737009144037,1.05251141,711.8,710.75,6.074]
[1737009144336,1.05251141,711.85,710.75,6.074]
[1737009144537,0.28096201,711.84,710.75,6.074]
[1737009148437,1.05251141,711.83,710.75,6.074]
[1737009148643,0.2809699,711.82,710.75,6.074]
[1737009149240,1.05251141,711.67,710.75,6.074]
[1737009150643,1.05251141,711.68,710.75,6.074]
[1737009152741,1.05251141,711.54,710.75,6.074]
[1737009154345,1.05251141,711.53,710.75,6.074]
[1737009155047,1.05251141,711.56,710.75,6.074]
[1737009156147,1.05251141,711.55,710.75,6.074]
[1737009156946,1.05251141,711.51,710.75,6.074]
[1737009158249,1.05251141,711.53,710.75,6.074]
[1737009161752,0.69685191,711.81,710.75,6.074]
[1737009161753,1.05251141,711.55,710.75,6.074]
[1737009164152,1.05251141,711.56,710.75,6.074]
[1737009165253,1.05251141,711.58,710.75,6.074]
[1737009166354,1.05251141,711.57,710.75,6.074]
[1737009169950,1.05251141,711.51,710.75,6.074]
[1737009170755,1.05251141,711.49,710.75,6.074]
[1737009171655,1.05251141,711.5,710.75,6.074]
[1737009173157,1.05251141,711.46,710.75,6.074]
[1737009174258,0.69608666,711.81,710.75,6.074]
[1737009174259,1.05251141,711.44,710.75,6.074]
[1737009175256,1.05251141,711.4,710.75,6.074]
[1737009176254,1.05251141,711.36,710.75,6.074]
[1737009177358,0.69608666,711.81,710.75,6.074]
[1737009177359,1.05251141,711.34,710.75,6.074]
[1737009178253,1.05251141,711.32,710.75,6.074]
[1737009180760,1.05251141,711.31,710.75,6.074]
[1737009182657,1.05251141,711.25,710.75,6.074]
[1737009184756,1.05251141,711.24,710.75,6.074]
[1737009187263,1.05251141,711.25,710.75,6.074]
[1737009190163,1.05251141,711.26,710.75,6.074]
[1737009191858,1.05251141,711.24,710.75,6.074]
[1737009193865,1.05251141,711.23,710.75,6.074]
[1737009194867,1.05251141,711.21,710.75,6.074]
[1737009195764,1.05251141,711.2,710.75,6.074]
[1737009196967,1.05251141,711.22,710.75,6.074]
[1737009198169,1.05251141,711.21,710.75,6.074]
[1737009200771,2.14887746,711.89,710.75,6.074]
[1737009200772,1.05251141,711.19,710.75,6.074]
[1737009201472,1.05251141,711.21,710.75,6.074]
[1737009202775,1.05251141,711.24,710.75,6.074]
[1737009203675,1.05251141,711.33,710.75,6.074]
[1737009205772,1.05251141,711.32,710.75,6.074]
[1737009206778,1.05251141,711.3,710.75,6.074]
[1737009208579,1.05251141,711.36,710.75,6.074]
[1737009209677,1.05251141,711.35,710.75,6.074]
[1737009211878,1.05251141,711.34,710.75,6.074]
[1737009212275,1.33367091,711.34,710.75,6.074]
[1737009212476,0.28116345,711.33,710.75,6.074]
[1737009212770,1.33367486,711.33,710.75,6.074]
[1737009213679,1.05251141,711.21,710.75,6.074]
[1737009214779,1.05251141,711.27,710.75,6.074]
[1737009215875,1.05251141,711.25,710.75,6.074]
[1737009218478,1.05251141,711.2,710.75,6.074]
[1737009219479,1.05251141,711.19,710.75,6.074]
[1737009220578,1.05251141,711.12,710.75,6.074]
[1737009221879,1.05251141,711.11,710.75,6.074]
[1737009224283,1.05251141,711.07,710.75,6.074]
[1737009227287,1.05251141,711.27,710.75,6.074]
[1737009229485,1.05251141,711.23,710.75,6.074]
[1737009231882,1.46896908,711.29,710.75,6.074]
[1737009231883,1.05251141,711.24,710.75,6.074]
[1737009233690,1.05251141,711.23,710.75,6.074]
[1737009234790,1.05251141,711.22,710.75,6.074]
[1737009236592,1.05251141,711.21,710.75,6.074]
[1737009237792,1.05251141,711.07,710.75,6.074]
[1737009239188,1.05251141,711.03,710.75,6.074]
[1737009240392,0.28116345,711.33,710.75,6.074]
[1737009240393,1.05251141,711.02,710.75,5.399]
[1737009240590,1.05251141,711.02,710.75,5.227]
[1737009241494,1.05251141,711.05,710.75,5.227]
[1737009242495,1.05251141,711.06,710.75,5.227]
[1737009244493,1.05251141,711.06,710.75,6.469]
[1737009246893,1.05251141,711.07,710.75,6.469]
[1737009248101,1.05251141,711.06,710.75,6.469]
[1737009248902,1.05251141,711.05,710.75,6.469]
[1737009249701,1.05251141,711.12,710.75,6.469]
[1737009250802,1.05251141,711.07,710.75,6.469]
[1737009251602,1.05251141,711.02,710.75,6.469]
[1737009252801,1.05251141,711.0,710.75,6.469]
[1737009254703,1.05251141,711.02,710.75,6.469]
[1737009258606,1.05251141,711.03,710.75,6.469]
[1737009258806,1.05251141,711.03,710.75,5.699]
[1737009259007,0.28116345,711.33,710.75,5.699]
[1737009259008,1.05251141,710.91,710.75,5.699]
[1737009259409,1.05251141,710.91,710.75,4.713]
[1737009259810,1.05251141,710.91,710.75,2.93305059]
[1737009260002,1.05251141,710.91,710.75,2.367]
[1737009260510,1.05251141,710.92,710.75,1.242]
[1737009260808,1.05251141,710.92,710.75,0.415]
[1737009261309,1.05251141,710.87,710.75,0.415]
[1737009262112,0.69770873,711.32,710.75,0.415]
[1737009262113,1.05251141,710.84,710.75,0.415]
[1737009263308,1.05251141,710.85,710.75,0.415]
[1737009264312,1.05251141,710.84,710.75,0.415]
[1737009266612,1.05251141,710.84,710.66,0.48]
[1737009267513,1.05251141,710.83,710.66,0.48]
[1737009269115,1.05251141,710.83,710.58,3.102]
[1737009269617,1.05251141,710.82,710.58,3.102]
[1737009270516,1.05251141,710.83,710.58,3.102]
[1737009271818,1.05251141,710.8,710.58,3.102]
[1737009272514,1.05251141,710.79,710.58,3.102]
[1737009273715,1.05251141,710.8,710.58,3.102]
[1737009274322,1.05251141,710.83,710.58,3.102]
[1737009275420,1.05251141,710.82,710.58,3.102]
[1737009278522,1.05251141,710.82,710.58,2.357]
[1737009278723,1.05251141,710.82,710.58,1.325]
[1737009278923,1.26301369,711.36,710.52,0.915]
[1737009278924,1.05251141,711.01,710.52,0.915]
[1737009279115,0.28129395,711.0,710.52,0.915]
[1737009279917,0.28129395,711.0,710.52,2.813]
[1737009280723,1.46952219,710.99,710.52,4.31]
[1737009280924,0.28130186,710.98,710.52,4.31]
[1737009286030,0.28130186,710.98,710.52,2.9821]
[1737009287331,0.28130186,710.98,710.52,4.1361]
[1737009289129,0.28130186,710.98,710.52,4.9771]
[1737009289532,1.05251141,710.93,710.52,4.9771]
[1737009289731,0.2813256,710.92,710.52,4.9771]
[1737009290134,0.2813256,710.92,710.52,3.7321]
[1737009290334,1.05251141,710.84,710.52,3.7321]
[1737009291537,1.05251141,710.84,710.52,2.9871]
[1737009291834,1.05251141,710.84,710.52,2.42410001]
[1737009292236,1.05251141,710.84,710.52,1.85310002]
[1737009292436,1.05251141,710.84,710.52,0.33830002]
[1737009292636,1.05251141,710.83,710.52,0.33830002]
[1737009292935,1.05251141,710.83,710.52,0.73430002]
[1737009293135,1.05251141,710.83,709.45,1.04974223]
[1737009293435,1.05251141,710.83,709.46,0.25882196]
[1737009293632,1.05251141,710.83,709.45,2.03674223]
[1737009293830,1.05251141,710.83,709.46,0.25882196]
[1737009294133,1.05251141,710.79,709.47,1.04974223]
[1737009294936,1.05251141,710.79,709.48,0.25881841]
[1737009295337,1.05251141,710.84,709.48,0.25881841]
[1737009295636,1.05251141,710.84,709.49,0.25881841]
[1737009295836,1.05251141,710.84,709.5,0.25881841]
[1737009296038,1.05251141,710.84,709.51,0.25881841]
[1737009296230,0.2813256,710.92,709.52,1.04974223]
[1737009296231,1.05251141,710.78,709.52,1.04974223]
[1737009297033,1.05251141,710.78,709.51,1.04974223]
[1737009297234,1.05251141,710.78,709.52,0.25881824]
[1737009298038,1.05251141,710.75,709.54,1.04974223]
[1737009299133,1.05251141,710.74,709.52,1.04974223]
[1737009299439,1.05251141,710.74,709.53,0.25882266]
[1737009300340,1.05251141,710.73,709.54,1.04974223]
[1737009300639,1.05251141,710.73,709.55,0.25882266]
[1737009300838,1.05251141,710.73,709.54,1.04974223]
[1737009301038,1.05251141,710.73,709.55,0.25882187]
[1737009301438,1.05251141,710.72,709.55,0.25882187]
[1737009301634,1.05251141,710.72,709.56,0.25881763]
[1737009301833,1.05251141,710.72,709.57,0.25881763]
[1737009302140,1.05251141,710.72,709.58,0.25881763]
[1737009302338,1.05251141,710.72,709.59,0.25881763]
[1737009302539,1.05251141,710.72,709.58,0.928]
[1737009303034,1.05251141,710.72,709.59,0.25881181]
[1737009303239,1.05251141,710.71,709.6,0.25880003]
[1737009303442,1.05251141,710.71,709.61,0.25880003]
[1737009303640,1.05251141,710.71,709.58,0.928]
[1737009303839,1.05251141,710.71,709.59,0.25879596]
[1737009304442,1.05251141,710.81,709.6,0.28184892]
[1737009304737,1.05251141,710.81,709.61,0.25879596]
[1737009305142,1.05251141,710.81,709.62,0.28184098]
[1737009305341,1.05251141,710.81,709.63,0.25879596]
[1737009305742,1.05251141,710.88,709.72,1.04974223]
[1737009306542,1.05251141,710.89,709.72,1.04974223]
[1737009307644,1.05251141,710.89,709.62,0.28184098]
[1737009307645,1.05251141,710.87,709.7,1.04974223]
[1737009307839,1.05251141,710.87,709.71,0.25878459]
[1737009308545,1.05251141,710.87,709.72,0.25878534]
[1737009308847,0.2813256,710.92,709.7,1.04974223]
[1737009308848,1.05251141,710.77,709.73,0.25878534]
[1737009309040,1.05251141,710.77,709.74,0.25878534]
[1737009309244,1.05251141,710.77,709.7,1.04974223]
[1737009309441,1.05251141,710.77,709.71,0.25878717]
[1737009309949,1.05251141,710.72,709.72,1.04974223]
[1737009310147,1.05251141,710.72,709.73,0.25878717]
[1737009310846,1.05251141,710.72,709.72,1.04974223]
[1737009311047,0.2813256,710.92,709.62,0.28184098]
[1737009311048,1.05251141,710.71,709.73,1.04974223]
[1737009312143,1.05251141,710.66,709.67,1.04974223]
[1737009313549,1.05251141,710.63,709.63,1.04974223]
[1737009314547,1.05251141,710.62,709.63,1.04974223]
[1737009316445,1.05251141,710.62,709.62,0.28184098]
[1737009316446,1.05251141,710.61,709.64,1.04974223]
[1737009319457,1.05251141,710.6,709.63,1.04974223]
[1737009320057,1.05251141,710.6,709.63,1.97574223]
[1737009320659,1.05251141,710.6,709.64,0.25882699]
[1737009321256,1.05251141,710.59,709.64,1.30856922]
[1737009321457,1.05251141,710.59,709.65,0.25882699]
[1737009322259,1.05251141,710.59,709.64,1.04974223]
[1737009322558,1.05251141,710.59,709.64,2.11574223]
[1737009323159,1.05251141,710.6,709.64,1.066]
[1737009323859,1.05251141,710.6,709.65,0.25881904]
[1737009324057,1.05251141,710.6,709.64,1.066]
[1737009324252,1.05251141,710.61,709.64,1.066]
[1737009325661,1.05251141,710.67,709.64,1.066]
[1737009326355,1.05251141,710.69,709.64,1.066]